bitfinex/quotes_ETHUSD_20230113
["timestamp","ask_amount","ask_price","bid_price","bid_amount"]
[1673608695855,19.98198459,1415.8,1415.5,21.71107228]
[1673608696296,19.98198459,1415.8,1415.5,20.66188203]
[1673608696487,19.98198459,1415.8,1415.5,21.71107228]
[1673608698039,19.98198459,1415.8,1415.6,1.197]
[1673608698405,12.91875459,1415.8,1415.6,1.197]
[1673608700987,12.91875459,1415.8,1415.6,8.26111]
[1673608701202,12.91875459,1415.8,1415.6,8.32190593]
[1673608704455,9.31242187,1415.8,1415.6,22.45018593]
[1673608707824,9.31242187,1415.8,1415.6,15.38604593]
[1673608709547,0.066,1415.8,1415.6,15.38604593]
[1673608709856,1.58592783,1415.9,1415.6,25.50659355]
[1673608710099,5.19226055,1415.9,1415.6,25.50659355]
[1673608710223,5.25826055,1415.9,1415.6,25.50659355]
[1673608710439,5.25826055,1415.9,1415.6,22.45018593]
[1673608710763,11.22438059,1415.9,1415.6,15.38604593]
[1673608711099,9.47202769,1415.9,1415.6,15.38604593]
[1673608711309,1.05612783,1415.8,1415.6,15.38604593]
[1673608711518,9.47202769,1415.9,1415.6,15.38604593]
[1673608711731,16.65232495,1415.9,1415.6,15.38604593]
[1673608711944,16.65232495,1415.9,1415.6,14.18904593]
[1673608718984,2.0,1415.8,1415.6,14.18904593]
[1673608719159,3.60633272,1415.7,1415.6,0.06079593]
[1673608719390,10.66997272,1415.7,1415.4,36.38231938]
[1673608719538,1.06699727,1415.6,1415.4,35.33312913]
[1673608719744,1.06699727,1415.6,1415.4,27.18952913]
[1673608720157,1.06408343,1415.6,1415.4,27.18952913]
[1673608720364,3.60633272,1415.5,1415.4,20.12458913]
[1673608722048,15.38328343,1415.6,1415.4,20.12458913]
[1673608722386,17.92553272,1415.6,1415.4,34.25486913]
[1673608724308,17.92553272,1415.6,1415.4,27.18972913]
[1673608724471,17.39563272,1415.6,1415.4,27.18972913]
[1673608725578,17.39563272,1415.6,1415.4,20.12458913]
[1673608725890,1.73956327,1415.5,1415.4,20.12458913]
[1673608727421,12.41053599,1415.5,1415.4,20.12458913]
[1673608727623,12.47653599,1415.5,1415.4,20.12458913]
[1673608728842,12.47653599,1415.5,1415.4,0.12458913]
[1673608728992,12.47653599,1415.5,1415.4,0.0637932]
[1673608729203,13.00643599,1415.5,1415.4,0.0637932]
[1673608730409,12.47653599,1415.5,1415.4,0.0637932]
[1673608731479,5.41189599,1415.5,1415.4,0.0637932]
[1673608740470,5.94179599,1415.5,1415.4,0.0637932]
[1673608740900,7.94179599,1415.5,1415.4,0.0637932]
[1673608741118,5.94179599,1415.5,1415.4,0.0637932]
[1673608741518,7.94179599,1415.5,1415.4,0.0637932]
[1673608742375,15.23643599,1415.5,1415.4,0.0637932]
[1673608742593,16.43343599,1415.5,1415.4,1e-08]
[1673608743410,14.43343599,1415.5,1415.4,1e-08]
[1673608747302,21.49807599,1415.5,1415.4,1e-08]
[1673608748428,20.30107599,1415.5,1415.4,1e-08]
[1673608748805,19.77117599,1415.5,1415.4,1e-08]
[1673608750617,20.30107599,1415.5,1415.4,1e-08]
[1673608753635,21.35720382,1415.5,1415.4,1e-08]
[1673608754209,20.30107599,1415.5,1415.4,1e-08]
[1673608754367,31.3717425,1415.5,1415.4,1e-08]
[1673608754574,35.58713908,1415.5,1415.4,1e-08]
[1673608754783,34.00110443,1415.5,1415.4,1e-08]
[1673608754992,35.58713908,1415.5,1415.4,1e-08]
[1673608755256,39.83813908,1415.5,1415.4,1e-08]
[1673608755424,39.83954101,1415.5,1415.4,1e-08]
[1673608755641,35.62414443,1415.5,1415.4,1e-08]
[1673608756088,33.87124575,1415.5,1415.4,1e-08]
[1673608756844,32.81371599,1415.5,1415.4,1e-08]
[1673608757048,35.62404465,1415.5,1415.4,1e-08]
[1673608757790,14.43343599,1415.5,1415.4,1e-08]
[1673608757941,13.90353599,1415.5,1415.4,1e-08]
[1673608759020,16.71382345,1415.5,1415.4,1e-08]
[1673608759618,20.92911467,1415.5,1415.4,1e-08]
[1673608759949,21.45901467,1415.5,1415.4,1e-08]
[1673608761297,28.52365467,1415.5,1415.4,1e-08]
[1673608761717,26.93762002,1415.5,1415.4,1e-08]
[1673608762035,28.52365467,1415.5,1415.4,1e-08]
[1673608762249,28.82965467,1415.5,1415.4,1e-08]
[1673608762457,28.82965467,1415.5,1415.3,0.06052679]
[1673608762667,8.48929819,1415.4,1415.3,0.06052679]
[1673608762961,6.55529819,1415.4,1415.3,0.06052679]
[1673608763114,30.28597991,1415.4,1415.3,0.06052679]
[1673608763326,38.85311991,1415.4,1415.3,0.06052679]
[1673608763661,41.71252237,1415.4,1415.3,0.06052679]
[1673608764270,37.33020795,1415.4,1415.3,0.06052679]
[1673608764612,39.08310887,1415.4,1415.3,0.06052679]
[1673608764924,37.33020795,1415.4,1415.3,0.06052679]
[1673608765915,36.27267819,1415.4,1415.3,0.06052679]
[1673608768053,34.77067819,1415.4,1415.3,0.06052679]
[1673608768228,17.52743272,1415.4,1415.3,0.06052679]
[1673608768793,13.9211,1415.4,1415.3,0.06052679]
[1673608768999,13.9211,1415.4,1415.3,7.12615679]
[1673608769178,0.066,1415.4,1415.3,7.18695272]
[1673608769383,25.80216441,1415.6,1415.3,14.25258272]
[1673608769595,25.80216441,1415.6,1415.3,23.70528102]
[1673608769596,30.45144854,1415.6,1415.3,23.70528102]
[1673608769804,30.45144854,1415.6,1415.3,26.25147127]
[1673608769805,26.76493272,1415.6,1415.3,26.25147127]
[1673608770287,0.066,1415.6,1415.3,27.819604]
[1673608770518,7.66091703,1415.7,1415.5,9.06464]
[1673608770645,4.72986248,1415.7,1415.5,11.70011496]
[1673608770855,3.60633272,1415.7,1415.5,9.70011496]
[1673608771090,4.66386248,1415.7,1415.5,9.70011496]
[1673608771514,4.66586248,1415.7,1415.5,9.69811496]
[1673608771707,4.66586248,1415.7,1415.5,9.70011496]
[1673608771708,4.66386248,1415.7,1415.5,9.70011496]
[1673608772120,4.66386248,1415.7,1415.5,11.20311496]
[1673608772787,28.78444234,1415.8,1415.6,2.6233115]
[1673608772984,28.17606248,1415.8,1415.6,16.7514615]
[1673608773167,4.72986248,1415.8,1415.6,16.81225743]
[1673608773379,9.77675168,1415.9,1415.7,1.68122574]
[1673608773586,9.77675168,1415.9,1415.7,8.74467574]
[1673608773587,11.26724975,1415.9,1415.7,8.74467574]
[1673608773831,11.26724975,1415.9,1415.7,8.80547167]
[1673608774041,4.72986248,1415.9,1415.7,7.12424593]
[1673608774332,4.66386248,1415.9,1415.7,7.12424593]
[1673608774492,6.24989713,1415.9,1415.7,7.12424593]
[1673608774706,6.31589713,1415.9,1415.7,7.12424593]
[1673608774917,4.72986248,1415.9,1415.7,7.12424593]
[1673608775111,6.24989713,1415.9,1415.7,7.12424593]
[1673608775327,4.72986248,1415.9,1415.7,7.12424593]
[1673608775548,4.66386248,1415.9,1415.7,7.12424593]
[1673608776166,3.60633272,1415.9,1415.7,7.12424593]
[1673608776493,4.66386248,1415.9,1415.7,7.12424593]
[1673608777341,4.66386248,1415.9,1415.7,0.06079593]
[1673608777342,3.60633272,1415.8,1415.7,0.06079593]
[1673608777494,3.60633272,1415.8,1415.6,20.0]
[1673608777495,16.20948448,1415.8,1415.6,20.06079593]
[1673608777859,3.60633272,1415.7,1415.6,20.06079593]
[1673608778691,3.60633272,1415.7,1415.6,0.06079593]
[1673608778903,3.60633272,1415.7,1415.5,7.12542593]
[1673608778904,5.05863297,1415.7,1415.5,7.12542593]
[1673608779082,5.12463297,1415.7,1415.5,0.06079593]
[1673608779446,3.60633272,1415.6,1415.4,21.56379593]
[1673608779660,3.60633272,1415.6,1415.4,28.62891593]
[1673608779961,3.60633272,1415.6,1415.4,27.12591593]
[1673608780285,3.60633272,1415.5,1415.4,27.12591593]
[1673608780471,3.60633272,1415.5,1415.4,34.19105593]
[1673608784953,3.60260941,1415.5,1415.4,34.19105593]
[1673608786477,0.066,1415.6,1415.4,34.19105593]
[1673608786673,3.60633272,1415.6,1415.4,41.25619593]
[1673608786999,3.60633272,1415.5,1415.4,20.06079593]
[1673608787612,3.60633272,1415.5,1415.4,0.06079593]
[1673608787965,3.60633272,1415.5,1415.3,8.68963272]
[1673608788548,3.60633272,1415.4,1415.3,1.62432272]
[1673608788765,3.60633272,1415.4,1415.3,0.06052679]
[1673608789386,3.60633272,1415.4,1415.3,7.12615679]
[1673608789600,3.60633272,1415.4,1415.3,7.18695272]
[1673608791402,3.60633272,1415.4,1415.3,0.12132272]
[1673608791618,3.60633272,1415.4,1415.3,0.06052679]
[1673608794584,5.05524842,1415.4,1415.3,0.06052679]
[1673608794744,5.12124842,1415.4,1415.3,0.06052679]
[1673608795500,5.35124842,1415.4,1415.3,0.06052679]
[1673608802482,3.90233272,1415.4,1415.3,0.06052679]
[1673608802706,3.83633272,1415.4,1415.3,0.06052679]
[1673608803452,13.8872,1415.5,1415.3,7.12615679]
[1673608803645,13.3573,1415.5,1415.3,21.31821272]
[1673608803865,13.3573,1415.5,1415.4,16.26210127]
[1673608804015,13.3573,1415.5,1415.4,14.19107593]
[1673608804477,13.3573,1415.5,1415.4,14.14035395]
[1673608807008,0.066,1415.5,1415.4,14.14035395]
[1673608807169,0.066,1415.5,1415.4,24.20549395]
[1673608807170,0.5299,1415.5,1415.4,24.20549395]
[1673608807379,9.585,1415.6,1415.4,26.73701505]
[1673608807591,0.066,1415.6,1415.5,22.69092]
[1673608807800,0.05,1415.6,1415.5,22.75171593]
[1673608808067,14.82832976,1415.7,1415.5,22.75171593]
[1673608808068,13.8208,1415.7,1415.5,22.75171593]
[1673608808224,17.42713272,1415.7,1415.5,22.75171593]
[1673608809699,0.066,1415.7,1415.5,26.13118144]
[1673608809911,17.81991703,1415.8,1415.5,26.13118144]
[1673608810232,21.42624975,1415.8,1415.5,26.13118144]
[1673608810880,14.88886248,1415.8,1415.5,26.13118144]
[1673608811221,14.88886248,1415.8,1415.5,25.82918144]
[1673608811387,14.88886248,1415.8,1415.7,14.12728]
[1673608811746,4.20213272,1415.8,1415.7,14.18807593]
[1673608811897,4.20213272,1415.8,1415.7,21.25171593]
[1673608811898,0.5298,1415.8,1415.7,21.25171593]
[1673608812107,14.37062976,1415.9,1415.7,21.25171593]
[1673608812316,17.97696248,1415.9,1415.7,21.25171593]
[1673608812528,17.44716248,1415.9,1415.7,25.53656234]
[1673608813234,16.38963272,1415.9,1415.7,25.53656234]
[1673608814629,17.44716248,1415.9,1415.7,25.53656234]
[1673608814841,16.38963272,1415.9,1415.7,25.53656234]
[1673608815272,16.38963272,1415.9,1415.7,22.44671593]
[1673608815638,17.44716248,1415.9,1415.7,21.25171593]
[1673608820423,16.38963272,1415.9,1415.7,21.25171593]
[1673608827089,16.38963272,1415.9,1415.7,7.12443593]
[1673608827302,5.24529599,1415.8,1415.7,0.06079593]
[1673608827490,5.31129599,1415.8,1415.6,14.18858593]
[1673608828824,5.30820777,1415.8,1415.6,14.18858593]
[1673608829039,3.6692445,1415.8,1415.6,14.18858593]
[1673608829244,3.6032445,1415.8,1415.6,14.18858593]
[1673608830992,6.1032445,1415.8,1415.6,14.18858593]
[1673608831309,6.1692445,1415.8,1415.6,14.18858593]
[1673608832218,3.6692445,1415.8,1415.6,14.18858593]
[1673608832427,6.05392293,1415.8,1415.6,14.18858593]
[1673608832643,6.11992293,1415.8,1415.6,14.18858593]
[1673608833711,6.10633272,1415.7,1415.6,7.12462593]
[1673608833936,6.40233272,1415.7,1415.6,0.06079593]
[1673608834149,8.84959684,1415.7,1415.5,20.06079593]
[1673608834475,3.60633272,1415.6,1415.5,20.06079593]
[1673608836948,3.83633272,1415.6,1415.5,20.06079593]
[1673608842179,3.60633272,1415.6,1415.5,41.25471593]
[1673608844109,13.5126,1415.7,1415.5,41.25471593]
[1673608844334,17.11893272,1415.7,1415.5,41.25471593]
[1673608844525,17.11893272,1415.7,1415.5,42.30390618]
[1673608845165,17.11893272,1415.7,1415.5,41.25471593]
[1673608845370,17.11893272,1415.7,1415.5,42.30390618]
[1673608845555,17.11893272,1415.7,1415.5,41.25471593]
[1673608847021,17.11893272,1415.7,1415.5,42.30390618]
[1673608847811,17.11893272,1415.7,1415.5,41.25471593]
[1673608850485,17.11893272,1415.7,1415.5,42.30390618]
[1673608850642,17.11893272,1415.7,1415.5,46.49849182]
[1673608851525,17.11893272,1415.7,1415.5,47.54768207]
[1673608853168,17.11893272,1415.7,1415.5,34.19007593]
[1673608854338,18.17646248,1415.7,1415.5,34.19007593]
[1673608855951,3.60633272,1415.6,1415.5,20.06079593]
[1673608856538,3.60355571,1415.6,1415.5,20.06079593]
[1673608858262,3.83355571,1415.6,1415.5,20.06079593]
[1673608858455,6.95106732,1415.6,1415.5,20.06079593]
[1673608858658,7.01706732,1415.6,1415.5,20.06079593]
[1673608861204,8.07459708,1415.6,1415.5,20.06079593]
[1673608861414,7.01706732,1415.6,1415.5,20.06079593]
[1673608861629,7.01706732,1415.6,1415.3,34.19170679]
[1673608861630,11.41326144,1415.6,1415.3,34.19170679]
[1673608861943,11.41326144,1415.6,1415.3,34.25770679]
[1673608861944,4.30803945,1415.5,1415.3,34.25770679]
[1673608862687,4.30803945,1415.5,1415.3,27.19211679]
[1673608864049,4.30803945,1415.5,1415.3,28.24130704]
[1673608864448,5.36556921,1415.5,1415.3,20.12652679]
[1673608864659,7.52313666,1415.4,1415.3,20.12652679]
[1673608864901,7.58913666,1415.4,1415.3,0.12652679]
[1673608865231,7.58913666,1415.4,1415.3,0.06052679]
[1673608868410,7.81913666,1415.4,1415.3,0.06052679]
[1673608869612,7.58913666,1415.4,1415.3,0.06052679]
[1673608871544,9.32013666,1415.4,1415.3,0.06052679]
[1673608873973,9.09013666,1415.4,1415.3,0.06052679]
[1673608874290,9.85003666,1415.4,1415.3,0.06052679]
[1673608874487,16.91517666,1415.4,1415.3,0.06052679]
[1673608875176,16.91517666,1415.4,1415.3,0.36725812]
[1673608876910,23.98031666,1415.4,1415.3,0.36725812]
[1673608877505,23.75031666,1415.4,1415.3,0.36725812]
[1673608877702,23.98031666,1415.4,1415.3,0.36725812]
[1673608879126,31.04545666,1415.4,1415.3,0.36725812]
[1673608879283,35.29645666,1415.4,1415.3,0.36725812]
[1673608880001,28.23131666,1415.4,1415.3,0.36725812]
[1673608880162,19.66517666,1415.4,1415.3,0.36725812]
[1673608880696,19.13527666,1415.4,1415.3,0.36725812]
[1673608880952,19.66517666,1415.4,1415.3,0.36725812]
[1673608885044,8.34903666,1415.4,1415.3,0.36725812]
[1673608886096,4.33313666,1415.4,1415.3,0.36725812]
[1673608886252,4.26713666,1415.4,1415.3,0.36725812]
[1673608887669,3.60633272,1415.4,1415.3,7.43288812]
[1673608887822,13.1393,1415.5,1415.3,21.63014812]
[1673608888037,16.74563272,1415.5,1415.3,21.63014812]
[1673608888577,16.21573272,1415.5,1415.3,24.49977293]
[1673608894292,16.21573272,1415.5,1415.3,21.63014812]
[1673608895042,17.27326248,1415.5,1415.3,21.63014812]
[1673608896265,17.27326248,1415.5,1415.3,14.56451812]
[1673608896477,18.85929713,1415.5,1415.3,14.56451812]
[1673608896690,17.27326248,1415.5,1415.3,14.56451812]
[1673608898294,21.26553968,1415.5,1415.3,14.56451812]
[1673608898472,25.48062619,1415.5,1415.3,14.56451812]
[1673608898932,23.89459154,1415.5,1415.3,14.56451812]
[1673608899149,25.48062619,1415.5,1415.3,14.56451812]
[1673608899458,4.66386248,1415.4,1415.3,0.43325812]
[1673608899672,9.40834793,1415.4,1415.3,0.36725812]
[1673608899825,9.47434793,1415.4,1415.3,0.36725812]
[1673608901665,7.72148891,1415.4,1415.3,0.36725812]
[1673608901853,9.47436485,1415.4,1415.3,0.36725812]
[1673608905654,6.66395915,1415.4,1415.3,0.36725812]
[1673608906199,4.72986248,1415.4,1415.3,0.4469136]
[1673608906495,4.72986248,1415.4,1415.3,21.6438036]
[1673608906496,3.60633272,1415.4,1415.3,21.6438036]
[1673608906650,3.60633272,1415.4,1415.3,21.7098036]
[1673608909137,13.66692976,1415.5,1415.3,21.7098036]
[1673608909347,17.27326248,1415.5,1415.3,21.7098036]
[1673608911312,17.27326248,1415.5,1415.4,10.0]
[1673608911542,17.27326248,1415.5,1415.4,24.19628]
[1673608913350,16.21573272,1415.5,1415.4,24.19628]
[1673608914097,17.27326248,1415.5,1415.4,24.19628]
[1673608914560,17.27326248,1415.5,1415.4,17.13114]
[1673608914765,17.27326248,1415.5,1415.4,8.19631534]
[1673608914766,23.68654931,1415.5,1415.4,8.19631534]
[1673608914981,27.07568427,1415.5,1415.4,8.19631534]
[1673608916567,26.01815451,1415.5,1415.4,8.19631534]
[1673608917860,27.0768697,1415.5,1415.4,8.19631534]
[1673608920954,25.49083505,1415.5,1415.4,8.19631534]
[1673608921853,25.49083505,1415.5,1415.4,8.19431534]
[1673608922063,25.49083505,1415.5,1415.4,8.19631534]
[1673608923269,26.01815451,1415.5,1415.4,8.19631534]
[1673608923444,27.07701285,1415.5,1415.4,8.19631534]
[1673608923638,26.54711285,1415.5,1415.4,8.19631534]
[1673608924687,24.9610782,1415.5,1415.4,8.19631534]
[1673608924999,26.54711285,1415.5,1415.4,8.19631534]
[1673608929269,26.54711285,1415.5,1415.4,8.19431534]
[1673608929495,26.54711285,1415.5,1415.4,8.19631534]
[1673608930113,33.61175285,1415.5,1415.4,8.19631534]
[1673608934262,32.0257182,1415.5,1415.4,8.19631534]
[1673608934478,24.9610782,1415.5,1415.4,8.19631534]
[1673608934731,24.9610782,1415.5,1415.4,8.18771534]
[1673608935575,26.54711285,1415.5,1415.4,8.18771534]
[1673608935785,33.61175285,1415.5,1415.4,8.18771534]
[1673608937097,26.54711285,1415.5,1415.4,8.18771534]
[1673608938942,25.48825451,1415.5,1415.4,6.31804823]
[1673608939151,26.54732262,1415.5,1415.4,6.31804823]
[1673608939306,26.54732262,1415.5,1415.4,6.31604823]
[1673608939517,26.54732262,1415.5,1415.4,6.31804823]
[1673608939776,25.48825451,1415.5,1415.4,6.31804823]
[1673608939995,26.54730129,1415.5,1415.4,6.31804823]
[1673608942795,25.48825451,1415.5,1415.4,6.31804823]
[1673608946349,32.55289451,1415.5,1415.4,6.31804823]
[1673608952064,34.66695757,1415.5,1415.4,6.31804823]
[1673608952610,51.46120292,1415.5,1415.4,6.31804823]
[1673608952776,51.99110292,1415.5,1415.4,6.31804823]
[1673608953321,54.62771222,1415.5,1415.4,6.31804823]
[1673608954120,52.51364916,1415.5,1415.4,6.31804823]
[1673608954751,54.63181589,1415.5,1415.4,6.31804823]
[1673608957782,70.12481589,1415.5,1415.4,6.31804823]
[1673608957936,70.12481589,1415.5,1415.4,0.064]
[1673608957937,71.53030446,1415.5,1415.4,0.064]
[1673608958300,71.53030446,1415.5,1415.3,0.24363017]
[1673608958301,6.751,1415.4,1415.3,0.24363017]
[1673608958513,45.40719833,1415.4,1415.3,0.24363017]
[1673608958665,42.75966665,1415.4,1415.3,0.24363017]
[1673608959093,42.75966665,1415.4,1415.1,0.42791035]
[1673608959094,45.91993125,1415.4,1415.1,0.42791035]
[1673608959298,15.56230056,1415.2,1415.1,0.42791035]
[1673608959549,47.49592507,1415.2,1415.1,0.42791035]
[1673608959758,47.72592507,1415.2,1415.1,0.42791035]
[1673608960045,52.14675929,1415.2,1415.1,0.42791035]
[1673608960616,54.26331234,1415.2,1415.1,0.42791035]
[1673608960829,53.20426031,1415.2,1415.1,0.42791035]
[1673608961770,56.20426031,1415.2,1415.1,0.42791035]
[1673608962344,55.14675929,1415.2,1415.1,0.42791035]
[1673608962558,56.20426068,1415.2,1415.1,0.42791035]
[1673608962824,54.61684589,1415.2,1415.1,0.42791035]
[1673608963608,57.26331234,1415.2,1415.1,0.42791035]
[1673608964292,58.76431234,1415.2,1415.1,0.42791035]
[1673608964501,78.76431234,1415.2,1415.1,0.42791035]
[1673608964711,79.29431234,1415.2,1415.1,0.42791035]
[1673608964920,77.17775929,1415.2,1415.1,0.42791035]
[1673608966923,78.23381083,1415.2,1415.1,0.42791035]
[1673608967080,78.23380655,1415.2,1415.1,0.42791035]
[1673608967507,86.74531234,1415.2,1415.1,0.42791035]
[1673608968615,84.62875929,1415.2,1415.1,0.42791035]
[1673608968772,85.73480588,1415.2,1415.1,0.42791035]
[1673608968965,77.75380588,1415.2,1415.1,0.42791035]
[1673608969178,73.52280588,1415.2,1415.1,0.42791035]
[1673608970659,73.75280588,1415.2,1415.1,0.42791035]
[1673608970895,72.16539109,1415.2,1415.1,0.42791035]
[1673608971084,69.53615613,1415.2,1415.1,0.42791035]
[1673608971293,72.10191041,1415.2,1415.1,0.42791035]
[1673608971725,73.6893252,1415.2,1415.1,0.42791035]
[1673608972444,74.2193252,1415.2,1415.1,0.42791035]
[1673608972775,74.21879178,1415.2,1415.1,0.42791035]
[1673608973111,73.63879178,1415.2,1415.1,0.42791035]
[1673608973438,75.13979178,1415.2,1415.1,0.42791035]
[1673608973923,74.08427861,1415.2,1415.1,0.42791035]
[1673608975225,74.61427861,1415.2,1415.1,0.42791035]
[1673608976323,7.98568806,1415.0,1414.9,0.09294911]
[1673608976532,51.13797959,1415.0,1414.9,0.09294911]
[1673608976796,52.63897959,1415.0,1414.9,0.09294911]
[1673608978424,54.13997959,1415.0,1414.9,0.09294911]
[1673608978687,59.80419792,1415.0,1414.9,0.09294911]
[1673608978852,58.74899111,1415.0,1414.9,0.09294911]
[1673608979311,62.08797018,1415.0,1414.9,0.09294911]
[1673608979699,60.03006949,1415.0,1414.9,0.09294911]
[1673608979909,54.67007959,1415.0,1414.9,0.09294911]
[1673608980212,55.7252864,1415.0,1414.9,0.09294911]
[1673608980533,54.67007959,1415.0,1414.9,0.09294911]
[1673608980742,55.1951864,1415.0,1414.9,0.09294911]
[1673608980953,59.80419792,1415.0,1414.9,0.09294911]
[1673608981195,55.1951864,1415.0,1414.9,0.09294911]
[1673608981386,72.09023988,1415.0,1414.9,0.09294911]
[1673608981611,72.09023414,1415.0,1414.9,0.09294911]
[1673608981822,69.53894386,1415.0,1414.9,0.09294911]
[1673608982382,62.08794386,1415.0,1414.9,0.09294911]
[1673608983438,69.58894386,1415.0,1414.9,0.09294911]
[1673608984374,62.13794386,1415.0,1414.9,0.09294911]
[1673608985371,55.7252864,1415.0,1414.9,0.09294911]
[1673608985583,54.67007959,1415.0,1414.9,0.09294911]
[1673608986747,55.7252864,1415.0,1414.9,0.09294911]
[1673608986958,54.2242864,1415.0,1414.9,0.09294911]
[1673608987215,53.16907959,1415.0,1414.9,0.09294911]
[1673608990838,55.97783977,1415.0,1414.9,0.09294911]
[1673608992789,58.53321069,1415.0,1414.9,0.09294911]
[1673608993102,58.00311069,1415.0,1414.9,0.09294911]
[1673608993675,58.05311069,1415.0,1414.9,0.09294911]
[1673608994366,58.58531867,1415.0,1414.9,0.09294911]
[1673608994886,60.70187172,1415.0,1414.9,0.09294911]
[1673608995701,58.53531867,1415.0,1414.9,0.09294911]
[1673608996643,59.5925585,1415.0,1414.9,0.09294911]
[1673608996995,60.65187172,1415.0,1414.9,0.09294911]
[1673608997501,59.06445693,1415.0,1414.9,0.09294911]
[1673608999301,59.06445693,1415.0,1414.9,0.09065989]
[1673609000356,66.31915977,1415.0,1414.9,0.09065989]
[1673609000616,74.57185933,1415.0,1414.9,0.09065989]
[1673609000830,71.92616801,1415.0,1414.9,0.09065989]
[1673609001140,71.92616801,1415.0,1414.7,0.08396607]
[1673609001141,7.58566079,1414.8,1414.7,0.08396607]
[1673609001468,60.10204025,1414.8,1414.7,0.08396607]
[1673609001794,63.18673563,1414.8,1414.7,0.08396607]
[1673609002091,69.7241229,1414.8,1414.7,0.08396607]
[1673609002560,81.33085272,1414.8,1414.7,0.08396607]
[1673609002773,86.25106353,1414.8,1414.7,0.08396607]
[1673609003102,81.64205201,1414.8,1414.7,0.08396607]
[1673609003301,78.99542972,1414.8,1414.7,0.08396607]
[1673609003511,83.60444124,1414.8,1414.7,0.08396607]
[1673609003771,78.99542972,1414.8,1414.7,0.08396607]
[1673609003926,83.60444124,1414.8,1414.7,0.08396607]
[1673609004157,84.1337657,1414.8,1414.7,0.08396607]
[1673609004723,93.0807657,1414.8,1414.7,0.08396607]
[1673609005431,95.19650583,1414.8,1414.7,0.08396607]
[1673609006200,87.79550583,1414.8,1414.7,0.08396607]
[1673609007093,82.82783115,1414.8,1414.7,0.08396607]
[1673609007353,82.65530578,1414.8,1414.7,0.08396607]
[1673609007720,77.71930578,1414.8,1414.7,0.08396607]
[1673609007980,39.00360716,1414.8,1414.7,0.08396607]
[1673609008186,40.01116233,1414.8,1414.7,0.08396607]
[1673609008660,35.76016233,1414.8,1414.7,0.08396607]
[1673609008819,25.80725103,1414.8,1414.7,0.08396607]
[1673609009029,26.8648062,1414.8,1414.7,0.08396607]
[1673609009454,31.16662815,1414.8,1414.7,0.08396607]
[1673609009817,28.61850561,1414.8,1414.7,1.57096607]
[1673609010204,28.8485191,1414.8,1414.7,1.57096607]
[1673609010440,31.39658334,1414.8,1414.7,1.57096607]
[1673609010768,28.8485191,1414.8,1414.7,1.57096607]
[1673609011406,31.39697839,1414.8,1414.7,1.57096607]
[1673609011547,28.8485191,1414.8,1414.7,1.57096607]
[1673609011761,31.39697799,1414.8,1414.7,1.57096607]
[1673609012089,28.8485191,1414.8,1414.7,1.57096607]
[1673609016176,31.39771861,1414.8,1414.7,1.57096607]
[1673609016850,31.39771861,1414.8,1414.7,0.08396607]
[1673609017229,32.98415045,1414.8,1414.7,0.08396607]
[1673609017450,31.39771861,1414.8,1414.7,0.08396607]
[1673609017676,38.46584861,1414.8,1414.7,0.08396607]
[1673609018174,40.05228045,1414.8,1414.7,0.08396607]
[1673609018507,38.46584861,1414.8,1414.7,0.08396607]
[1673609018849,42.71684861,1414.8,1414.7,0.08396607]
[1673609020092,44.30328045,1414.8,1414.7,0.08396607]
[1673609020511,42.71684861,1414.8,1414.7,0.08396607]
[1673609021481,44.30328045,1414.8,1414.7,0.08396607]
[1673609021653,49.89714587,1414.8,1414.7,0.08396607]
[1673609022281,65.09164465,1414.8,1414.7,0.08396607]
[1673609022477,69.67914867,1414.8,1414.7,0.08396607]
[1673609022689,68.09164465,1414.8,1414.7,0.08396607]
[1673609023192,88.62184465,1414.8,1414.7,0.08396607]
[1673609023507,91.47063279,1414.8,1414.7,0.08396607]
[1673609024341,94.11725508,1414.8,1414.7,0.08396607]
[1673609024864,90.20917182,1414.8,1414.7,0.08016]
[1673609025242,88.09337787,1414.8,1414.7,0.08016]
[1673609028182,81.02524787,1414.8,1414.7,0.08016]
[1673609028556,73.95711787,1414.8,1414.7,0.08016]
[1673609029278,73.95485467,1414.8,1414.7,0.08016]
[1673609032837,66.24435741,1414.8,1414.7,0.08016]
[1673609034921,66.29435741,1414.8,1414.7,0.08016]
[1673609035360,68.41015136,1414.8,1414.7,0.08016]
[1673609036958,68.36015136,1414.8,1414.7,0.08016]
[1673609040400,43.04102136,1414.8,1414.7,1.58116]
[1673609040612,38.9843091,1414.8,1414.7,8.64979]
[1673609040824,18.9843091,1414.8,1414.7,8.71579]
[1673609041275,17.92297977,1414.8,1414.7,8.71579]
[1673609041612,18.98201985,1414.8,1414.7,8.71579]
[1673609041989,17.92297977,1414.8,1414.7,8.71579]
[1673609042428,18.98202105,1414.8,1414.7,8.71579]
[1673609043821,17.92297977,1414.8,1414.7,8.71579]
[1673609044133,18.98207389,1414.8,1414.7,8.71579]
[1673609044299,18.98207287,1414.8,1414.7,8.71579]
[1673609044758,17.92297977,1414.8,1414.7,8.71579]
[1673609045658,17.92297977,1414.8,1414.7,1.64716]
[1673609045828,17.92297977,1414.8,1414.7,1.58116]
[1673609046200,20.03877372,1414.8,1414.7,1.58116]
[1673609046659,17.92297977,1414.8,1414.7,1.58116]
[1673609046928,32.69987381,1414.8,1414.7,0.08016]
[1673609047193,39.76800381,1414.8,1414.7,0.08016]
[1673609047510,42.4146261,1414.8,1414.7,0.08016]
[1673609048436,46.6656261,1414.8,1414.7,0.08016]
[1673609048663,51.08713381,1414.8,1414.7,0.08016]
[1673609048841,65.08713381,1414.8,1414.7,0.08016]
[1673609049989,58.01900381,1414.8,1414.7,0.08016]
[1673609053454,67.73721727,1414.8,1414.7,0.08016]
[1673609053807,67.73721727,1414.8,1414.7,0.07766785]
[1673609055860,65.61796215,1414.8,1414.7,0.07766785]
[1673609056278,67.57750566,1414.8,1414.7,0.07766785]
[1673609056496,71.10770566,1414.8,1414.7,0.07766785]
[1673609056738,83.21497026,1414.8,1414.6,0.01728655]
[1673609057062,45.05650602,1414.7,1414.6,0.01728655]
[1673609057392,66.32839602,1414.7,1414.6,0.01728655]
[1673609057695,75.91189602,1414.7,1414.6,0.01728655]
[1673609057903,78.757313,1414.7,1414.6,0.01728655]
[1673609058480,78.7582605,1414.7,1414.6,0.01728655]
[1673609058796,76.26764675,1414.7,1414.6,0.01728655]
[1673609059006,73.42222977,1414.7,1414.6,0.01728655]
[1673609059645,70.92222977,1414.7,1414.6,0.01728655]
[1673609059859,71.45242977,1414.7,1414.6,0.01728655]
[1673609060117,70.92222977,1414.7,1414.6,0.01728655]
[1673609061363,75.52792753,1414.7,1414.6,0.01728655]
[1673609061585,73.40952976,1414.7,1414.6,0.01728655]
[1673609062425,68.803832,1414.7,1414.6,0.01728655]
[1673609062790,71.64924898,1414.7,1414.6,0.01728655]
[1673609064318,73.76668344,1414.7,1414.6,0.01728655]
[1673609065748,61.85429329,1414.7,1414.6,0.01728655]
[1673609065965,71.1005315,1414.7,1414.6,0.01728655]
[1673609069834,73.74940544,1414.7,1414.6,0.01728655]